bitfinex-derivatives/quotes_BTCF0:USTF0_20250313
["timestamp","ask_amount","ask_price","bid_price","bid_amount"]
[1741896499514,0.0627,80350.0,80349.0,0.21474475]
[1741896499820,0.0627,80350.0,80349.0,0.20269064]
[1741896500019,0.0627,80350.0,80349.0,0.21468524]
[1741896500219,0.2478028,80350.0,80349.0,0.20269064]
[1741896501115,0.1233,80350.0,80349.0,0.20269064]
[1741896501315,0.1233,80350.0,80349.0,0.21471548]
[1741896502121,0.1233,80350.0,80349.0,0.23770268]
[1741896502309,0.0627,80350.0,80349.0,0.23770268]
[1741896502513,0.00018675,80358.0,80357.0,0.1244919]
[1741896502719,0.00018675,80358.0,80357.0,0.15090308]
[1741896502912,0.0622355,80371.0,80357.0,0.15090308]
[1741896502913,0.1244747,80369.0,80357.0,0.02641118]
[1741896503214,0.0564,80370.0,80369.0,0.1244733]
[1741896503421,0.0598,80372.0,80371.0,0.1244702]
[1741896503607,0.00186713,80373.0,80371.0,0.13661897]
[1741896503806,0.0622258,80383.0,80382.0,0.0622253]
[1741896504713,0.1220228,80387.0,80386.0,0.124447]
[1741896506508,0.1220228,80387.0,80386.0,0.130447]
[1741896507212,0.1842454,80387.0,80386.0,0.130447]
[1741896507617,0.1842454,80387.0,80386.0,0.188847]
[1741896508022,0.1842454,80387.0,80386.0,0.130447]
[1741896509115,0.0598,80387.0,80386.0,0.130447]
[1741896509622,0.0598,80387.0,80386.0,0.255047]
[1741896509815,0.1842454,80387.0,80386.0,0.255047]
[1741896510009,0.2449454,80387.0,80386.0,0.255047]
[1741896510219,0.2449454,80387.0,80386.0,0.192847]
[1741896511610,0.2449454,80387.0,80386.0,0.006]
[1741896511915,0.2449454,80387.0,80386.0,0.130447]
[1741896512311,0.1205,80387.0,80386.0,0.130447]
[1741896513041,0.1205,80387.0,80386.0,0.14486924]
[1741896513728,0.0607,80387.0,80386.0,0.14486924]
[1741896514122,0.0588,80389.0,80388.0,0.1244439]
[1741896514323,0.00018663,80391.0,80387.0,0.1203]
[1741896514621,0.00018663,80391.0,80390.0,0.1244408]
[1741896514826,0.12462593,80391.0,80390.0,0.1244408]
[1741896515030,0.24782593,80391.0,80390.0,0.1244408]
[1741896515421,0.24782593,80391.0,80390.0,0.13886304]
[1741896515621,0.12338663,80391.0,80390.0,0.13886304]
[1741896516120,0.12338663,80391.0,80390.0,0.15081082]
[1741896516325,0.00018663,80391.0,80390.0,0.15681082]
[1741896516623,0.00018663,80391.0,80390.0,0.17641155]
[1741896516820,0.1192,80401.0,80400.0,0.1244253]
[1741896517024,0.1244269,80399.0,80398.0,0.2425266]
[1741896517219,0.1244269,80399.0,80398.0,0.25477637]
[1741896517824,0.3058376,80401.0,80400.0,0.1244253]
[1741896518024,0.3058376,80401.0,80400.0,0.13667507]
[1741896518222,0.1814126,80401.0,80400.0,0.14267507]
[1741896518430,0.1192,80401.0,80400.0,0.15709731]
[1741896518623,0.1192,80401.0,80400.0,0.17749602]
[1741896518926,0.2436238,80401.0,80400.0,0.17199517]
[1741896519130,0.2436238,80401.0,80400.0,0.16327271]
[1741896519626,0.2436238,80401.0,80400.0,0.16927271]
[1741896520226,0.2436238,80401.0,80400.0,0.04484741]
[1741896520539,0.2436238,80401.0,80400.0,0.03317118]
[1741896520728,0.2436238,80401.0,80400.0,0.03310929]
[1741896522725,0.2436238,80401.0,80400.0,0.03306436]
[1741896524129,0.1192,80401.0,80400.0,0.15748966]
[1741896524329,0.2436238,80401.0,80400.0,0.15748966]
[1741896524735,0.2436238,80401.0,80400.0,0.27368966]
[1741896525130,0.2436238,80401.0,80400.0,0.21598966]
[1741896525328,0.2436238,80401.0,80400.0,0.23644303]
[1741896525731,0.2436238,80401.0,80400.0,0.27368966]
[1741896526325,0.2436238,80401.0,80400.0,0.29414376]
[1741896527835,0.2436238,80401.0,80400.0,0.31823171]
[1741896528529,0.2436238,80401.0,80400.0,0.05715231]
[1741896529128,0.2436238,80401.0,80400.0,0.03306436]
[1741896529333,0.2436238,80401.0,80400.0,0.02042224]
[1741896529537,0.1244393,80391.0,80390.0,0.00018663]
[1741896529733,0.1244393,80391.0,80390.0,0.03355807]
[1741896530834,0.1244393,80391.0,80390.0,0.15799887]
[1741896531026,0.183,80393.0,80392.0,0.1244377]
[1741896531228,0.1216,80393.0,80392.0,0.15780914]
[1741896531427,0.2460362,80393.0,80392.0,0.03337144]
[1741896531639,0.2460362,80393.0,80392.0,0.15780914]
[1741896531937,0.1216,80393.0,80392.0,0.20816442]
[1741896532127,0.2460362,80393.0,80392.0,0.20816442]
[1741896532333,0.1216,80393.0,80392.0,0.21416442]
[1741896532533,0.2460362,80393.0,80392.0,0.33859723]
[1741896532935,0.2460362,80393.0,80392.0,0.22964817]
[1741896533137,0.2460362,80393.0,80392.0,0.09075953]
[1741896534741,0.2460362,80393.0,80392.0,0.09158492]
[1741896534945,0.2460362,80393.0,80392.0,0.21602262]
[1741896535641,0.2460362,80393.0,80392.0,0.15278492]
[1741896536041,0.2460362,80393.0,80392.0,0.27722262]
[1741896536235,0.2460362,80393.0,80392.0,0.2155703]
[1741896536443,0.2460362,80393.0,80392.0,0.0911326]
[1741896536843,0.2460362,80393.0,80392.0,0.07849053]
[1741896537043,0.2460362,80393.0,80392.0,0.0672]
[1741896537243,0.2460362,80393.0,80392.0,0.25308122]
[1741896537541,0.2460362,80393.0,80392.0,0.27752945]
[1741896537738,0.2460362,80393.0,80392.0,0.15309175]
[1741896538447,0.2460362,80393.0,80392.0,0.27752945]
[1741896538639,0.1216,80393.0,80392.0,0.28914938]
[1741896538941,0.1244307,80397.0,80392.0,0.16471168]
[1741896539131,0.1244307,80397.0,80396.0,0.1244315]
[1741896539332,0.1244307,80397.0,80396.0,0.18587502]
[1741896539536,0.1244307,80397.0,80394.0,0.0622165]
[1741896539537,0.0622142,80399.0,80392.0,0.16536816]
[1741896539739,0.1244331,80395.0,80394.0,0.0621]
[1741896540037,0.0622142,80399.0,80392.0,0.006]
[1741896540237,0.1244362,80393.0,80392.0,0.006]
[1741896540448,0.1184377,80392.0,80391.0,0.1818388]
[1741896540744,0.1184377,80392.0,80391.0,0.2245962]
[1741896540942,0.1184377,80392.0,80391.0,0.32212396]
[1741896541747,0.1184377,80392.0,80391.0,0.26807325]
[1741896541943,0.1184377,80392.0,80391.0,0.21074378]
[1741896542147,0.1154377,80392.0,80391.0,0.08630498]
[1741896542444,0.1154377,80392.0,80391.0,0.10139028]
[1741896542748,0.1164377,80392.0,80391.0,0.10439028]
[1741896542948,0.2505977,80392.0,80391.0,0.10439028]
[1741896544245,0.2505977,80392.0,80391.0,0.10357368]
[1741896545240,0.2505977,80392.0,80391.0,0.07689766]
[1741896547151,0.1164377,80392.0,80391.0,0.07689766]
[1741896547647,0.1792377,80392.0,80391.0,0.07689766]
[1741896549950,0.1792377,80392.0,80391.0,0.07738522]
[1741896550158,0.1792377,80392.0,80391.0,0.05325077]
[1741896551663,0.1792377,80392.0,80391.0,0.0180853]
[1741896551863,0.1792377,80392.0,80391.0,0.05315616]
[1741896552353,0.1792377,80392.0,80391.0,0.11065616]
[1741896553271,0.1792377,80392.0,80391.0,0.13482212]
[1741896553762,0.3711577,80392.0,80391.0,0.07776669]
[1741896555365,0.3711577,80392.0,80391.0,0.14086669]
[1741896555767,0.3711577,80392.0,80391.0,0.003]
[1741896556465,0.1244594,80378.0,80377.0,0.01150475]
[1741896556664,0.1244594,80378.0,80377.0,0.04706451]
[1741896556965,0.3106594,80378.0,80377.0,0.01367667]
[1741896557867,0.3106594,80378.0,80377.0,0.01533028]
[1741896558277,0.32221566,80378.0,80377.0,8e-08]
[1741896558979,0.1244671,80373.0,80372.0,0.22373488]
[1741896559478,0.1244702,80371.0,80369.0,0.00018663]
[1741896559675,0.1244702,80371.0,80370.0,0.01526137]
[1741896560064,0.2450702,80371.0,80370.0,0.01526137]
[1741896561472,0.2450702,80371.0,80370.0,0.00186631]
[1741896561666,0.1244718,80370.0,80369.0,4e-08]
[1741896561875,0.2585918,80370.0,80369.0,4e-08]
[1741896562076,0.3788918,80370.0,80369.0,4e-08]
[1741896563469,0.3798918,80370.0,80369.0,4e-08]
[1741896563674,0.5298918,80370.0,80369.0,4e-08]
[1741896565484,0.5298918,80370.0,80344.0,0.0622559]
[1741896565485,0.1245198,80339.0,80338.0,0.00186684]
[1741896565785,0.1245198,80339.0,80338.0,0.13943885]
[1741896566374,0.1245198,80339.0,80338.0,0.20153885]
[1741896566775,0.13430663,80347.0,80340.0,0.1245167]
[1741896567084,0.12469403,80347.0,80346.0,0.1245089]
[1741896567287,0.12469403,80347.0,80346.0,0.13755961]
[1741896567484,0.12469403,80347.0,80346.0,0.13790124]
[1741896567983,0.12469403,80347.0,80346.0,0.26000124]
[1741896568280,0.00118663,80347.0,80346.0,0.26000124]
[1741896568487,0.00118663,80347.0,80346.0,0.28154885]
[1741896569469,0.00118663,80347.0,80346.0,0.28176407]
[1741896569878,0.12337736,80886.0,80346.0,0.28176407]
[1741896569879,0.1867235,80365.0,80364.0,0.1867154]
[1741896570076,0.0622399,80365.0,80364.0,0.1867154]
[1741896570370,0.0622399,80365.0,80364.0,0.07574675]
[1741896570681,0.0622305,80378.0,80375.0,0.0622313]
[1741896570883,0.1244609,80377.0,80376.0,0.13140715]
[1741896571580,0.1244609,80377.0,80376.0,0.14653758]
[1741896572191,0.1244609,80377.0,80376.0,0.27100008]
[1741896572380,0.1244609,80377.0,80376.0,0.25586965]
[1741896572777,0.1244609,80377.0,80376.0,0.13140715]
[1741896573177,0.1244609,80377.0,80376.0,0.25586965]
[1741896573373,0.1244609,80377.0,80376.0,0.25568182]
[1741896574374,0.1244609,80377.0,80376.0,0.27071358]
[1741896574577,0.1244583,80379.0,80378.0,0.1244563]
[1741896574781,0.1244583,80379.0,80378.0,0.13777562]
[1741896574984,0.1244583,80379.0,80378.0,0.01331932]
[1741896575287,0.1244594,80378.0,80377.0,0.1244608]
[1741896575478,0.1244594,80378.0,80377.0,0.20160488]
[1741896576384,0.001,80379.0,80378.0,0.1244594]
[1741896576590,0.1254578,80379.0,80378.0,0.13790348]
[1741896576883,0.001,80379.0,80378.0,0.19930348]
[1741896577277,0.1254578,80379.0,80378.0,0.21432956]
[1741896577680,0.0622257,80384.0,80378.0,0.08987016]
[1741896577882,0.0622257,80384.0,80383.0,0.1244516]
[1741896578075,0.0622257,80384.0,80383.0,0.13789568]
[1741896578280,0.12463563,80385.0,80384.0,0.1244501]
[1741896578483,0.12463563,80385.0,80384.0,0.19929418]
[1741896578883,0.00018663,80385.0,80384.0,0.19929418]
[1741896579194,0.00018663,80385.0,80384.0,0.22126213]
[1741896579488,0.12463513,80385.0,80384.0,0.22126213]
[1741896579689,0.12463513,80385.0,80384.0,0.24850015]
[1741896579986,0.12463513,80385.0,80384.0,0.28826755]
[1741896580992,0.0622155,80397.0,80384.0,0.16381745]
[1741896581291,0.1866656,80391.0,80390.0,0.1244366]
[1741896581485,0.1866656,80391.0,80390.0,0.15984863]
[1741896581684,0.1244339,80395.0,80394.0,0.1244331]
[1741896581885,1.505,80451.0,80394.0,0.1244331]
[1741896581886,0.0115987,80407.0,80404.0,0.1244191]
[1741896582085,0.1243999,80417.0,80409.0,0.0622053]
[1741896582281,0.1243999,80417.0,80416.0,0.1244006]
[1741896582596,0.00018663,80421.0,80420.0,0.1243944]
[1741896582784,0.12457943,80421.0,80420.0,0.03607996]
[1741896582993,0.12457943,80421.0,80420.0,0.01361985]
[1741896583488,0.12457943,80421.0,80420.0,0.028915]
[1741896584889,0.12457943,80421.0,80420.0,0.1593094]
[1741896585098,0.12457943,80421.0,80420.0,0.2848094]
[1741896585992,0.12457943,80421.0,80420.0,0.160415]
[1741896586182,0.12457943,80421.0,80420.0,0.27118955]
[1741896586896,0.12457943,80421.0,80420.0,0.1315]
[1741896587291,0.12457943,80421.0,80420.0,0.006]
[1741896590883,0.12457943,80421.0,80420.0,0.123]
[1741896591083,0.00018663,80421.0,80420.0,0.2473944]
[1741896591289,0.00018663,80421.0,80420.0,0.25935265]
[1741896591891,0.00186552,80447.0,80420.0,0.14850347]
[1741896591892,0.00112001,80437.0,80420.0,0.14850347]
[1741896592183,0.1243828,80429.0,80428.0,0.124378]
[1741896592701,0.2435828,80429.0,80428.0,0.124378]
[1741896592889,0.2435828,80429.0,80428.0,0.241578]
[1741896593490,0.2435828,80429.0,80428.0,0.25506943]
[1741896594591,0.2435828,80429.0,80428.0,0.25505999]
[1741896594785,0.2435828,80429.0,80428.0,0.26105999]
[1741896595499,0.2435828,80429.0,80428.0,0.13668199]
[1741896596001,0.2435828,80429.0,80428.0,0.1232]
[1741896596298,0.2435828,80429.0,80428.0,0.13671549]
[1741896596599,0.2435828,80429.0,80428.0,0.13671546]
[1741896596799,0.2435828,80429.0,80428.0,0.1232]
[1741896597198,0.2435828,80429.0,80428.0,0.13668267]
[1741896597402,0.2435828,80429.0,80428.0,0.26106467]
[1741896597699,0.2435828,80429.0,80428.0,0.13668267]
[1741896599895,0.2435828,80429.0,80428.0,0.01948267]
[1741896600397,0.1244052,80413.0,80412.0,0.13604747]
[1741896600598,0.1244052,80413.0,80412.0,0.20742118]
[1741896600904,0.1244027,80415.0,80414.0,0.1244021]
[1741896601097,0.1830027,80415.0,80414.0,0.14542985]
[1741896601401,0.1830027,80415.0,80414.0,0.14543145]
[1741896601701,0.2455027,80415.0,80414.0,0.16035879]
[1741896602099,0.2455027,80415.0,80414.0,0.22215879]
[1741896602500,0.2455027,80415.0,80414.0,0.24621266]
[1741896603607,0.2455027,80415.0,80414.0,0.27265842]
[1741896603994,0.2455027,80415.0,80414.0,0.06000896]
[1741896604306,0.2465027,80415.0,80414.0,0.04398121]
[1741896604801,0.2455027,80415.0,80414.0,0.03898121]
[1741896605101,0.1221,80415.0,80405.0,0.0018655]
[1741896605289,0.12443,80397.0,80392.0,0.0627]
[1741896605496,0.12443,80397.0,80396.0,0.24463106]
[1741896605497,0.11943,80397.0,80396.0,0.24463106]
[1741896605806,0.11943,80397.0,80396.0,0.25938414]
[1741896606100,0.11443,80397.0,80396.0,0.25938414]
[1741896606404,0.11443,80397.0,80396.0,0.18391833]
[1741896606707,0.23123,80397.0,80396.0,0.18391833]
[1741896606903,0.24283446,80397.0,80396.0,0.18391833]
[1741896607103,0.23123,80397.0,80396.0,0.18391833]
[1741896607804,0.23223,80397.0,80396.0,0.18391833]
[1741896608300,0.23223,80397.0,80396.0,0.05948683]
[1741896608698,0.23223,80397.0,80396.0,0.20963525]
[1741896608896,0.0588,80397.0,80396.0,0.20963525]
[1741896609105,0.18323,80397.0,80396.0,0.20963525]
[1741896609502,0.18323,80397.0,80396.0,0.2095305]
[1741896610000,0.18323,80397.0,80396.0,0.085099]
[1741896610607,0.18323,80397.0,80396.0,0.2095305]
[1741896611903,0.18323,80397.0,80396.0,0.085099]
[1741896612102,0.18323,80397.0,80396.0,0.05932051]
[1741896612303,0.18323,80397.0,80396.0,0.07223696]
[1741896612710,0.18323,80397.0,80396.0,0.04839939]
[1741896613100,0.18323,80397.0,80396.0,0.027777]
[1741896613501,0.18323,80397.0,80396.0,0.02773721]
[1741896614319,0.31707,80397.0,80396.0,0.01287666]
[1741896614498,0.1244377,80392.0,80391.0,0.22373488]
[1741896615306,0.1882377,80392.0,80391.0,0.22373488]
[1741896616009,0.1892377,80392.0,80391.0,0.22373488]
[1741896617110,0.1244423,80389.0,80388.0,0.00018652]
[1741896617905,0.2451423,80389.0,80388.0,0.00018652]
[1741896618303,0.25689039,80389.0,80388.0,0.00018652]
[1741896618504,0.25789039,80389.0,80388.0,0.00518652]
[1741896619008,0.001,80389.0,80388.0,0.12963042]
[1741896619309,0.1254423,80389.0,80388.0,0.15009704]
[1741896619503,0.1254423,80389.0,80388.0,0.26539704]
[1741896619504,0.001,80389.0,80388.0,0.26539704]
[1741896620108,0.001,80389.0,80388.0,0.30230768]
[1741896620315,0.001,80389.0,80388.0,0.27700167]
[1741896620499,0.001,80389.0,80388.0,0.30025968]
[1741896621406,0.1254423,80389.0,80388.0,0.30025968]
[1741896621607,0.001,80389.0,80388.0,0.30025968]
[1741896622315,0.1254423,80389.0,80388.0,0.30025968]
[1741896622510,0.001,80389.0,80388.0,0.30025968]
[1741896622712,0.1254423,80389.0,80388.0,0.30025968]
[1741896623118,0.1254423,80389.0,80388.0,0.30006899]
[1741896624015,0.13707387,80389.0,80388.0,0.10601789]
[1741896624310,0.13707387,80389.0,80388.0,0.02866678]
[1741896624311,0.30377387,80389.0,80388.0,0.02866678]
[1741896624506,0.30377387,80389.0,80388.0,0.00518652]
[1741896626611,0.30377387,80389.0,80388.0,0.01767848]
[1741896626917,0.30377387,80389.0,80388.0,0.03218992]
[1741896628316,0.30377387,80389.0,80388.0,0.01969796]
[1741896629018,0.30377387,80389.0,80388.0,0.00518652]
[1741896629616,0.30377387,80389.0,80388.0,0.12963042]
[1741896629821,0.2921423,80389.0,80388.0,0.18343042]
[1741896630014,0.001,80389.0,80388.0,0.19592698]
[1741896630322,0.001,80389.0,80388.0,0.32794801]
[1741896630624,0.001,80389.0,80388.0,0.14480411]
[1741896630821,0.001,80389.0,80388.0,0.26924801]
[1741896630822,0.1254423,80389.0,80388.0,0.26924801]
[1741896631115,0.1254423,80389.0,80388.0,0.03220411]
[1741896631321,0.2975423,80389.0,80388.0,0.03220411]
[1741896631511,0.2975423,80389.0,80388.0,0.15664801]
[1741896631714,0.2405423,80389.0,80388.0,0.15664801]
[1741896632008,0.1254423,80389.0,80388.0,0.27274801]
[1741896632411,0.2405423,80389.0,80388.0,0.27274801]
[1741896632621,0.2405423,80389.0,80388.0,0.14830411]
[1741896632823,0.2405423,80389.0,80388.0,0.08950411]
[1741896634816,0.2405423,80389.0,80388.0,0.03220411]
[1741896635018,0.2405423,80389.0,80369.0,0.22388445]
[1741896635019,0.1244718,80370.0,80369.0,0.22388445]
[1741896635219,0.1244718,80370.0,80369.0,0.23638889]
[1741896635616,0.13655973,80370.0,80369.0,0.22388445]
[1741896635915,0.13655973,80370.0,80369.0,0.00014957]
[1741896636329,0.1244718,80370.0,80369.0,0.12462287]
[1741896636520,0.1254718,80370.0,80369.0,0.00114957]
[1741896640325,0.1254718,80370.0,80369.0,0.00014957]
[1741896641223,0.1244718,80370.0,80369.0,0.00014957]
[1741896641423,0.1254718,80370.0,80369.0,0.00014957]
[1741896641826,0.1244718,80370.0,80369.0,0.00014957]
[1741896642026,0.1254718,80370.0,80369.0,0.00014957]
[1741896644036,0.1244718,80370.0,80369.0,0.00014957]
[1741896644230,0.1254718,80370.0,80369.0,0.00014957]
[1741896647737,0.1244795,80365.0,80364.0,0.00186612]
[1741896647928,0.1244842,80362.0,80361.0,0.00018664]
[1741896648133,0.1244842,80362.0,80361.0,0.01264096]
[1741896648840,0.1245043,80349.0,80348.0,0.1171]
[1741896649034,0.1246378,80349.0,80348.0,0.07028746]
[1741896649236,0.1245105,80345.0,80342.0,0.22338153]
[1741896649441,0.182712,80344.0,80343.0,0.1961629]
[1741896649746,0.239512,80344.0,80343.0,0.2540629]
[1741896650148,0.239512,80344.0,80343.0,0.2416136]
[1741896650532,0.239512,80344.0,80343.0,0.1171]
[1741896650733,0.1245136,80343.0,80342.0,0.22338153]
[1741896651137,0.2395136,80343.0,80342.0,0.22338153]
[1741896651337,0.2395136,80343.0,80342.0,0.34789663]
[1741896651744,0.2335136,80343.0,80342.0,0.22338153]
[1741896652148,0.2335136,80343.0,80341.0,0.1245163]
[1741896652443,0.2335136,80343.0,80340.0,0.12638512]
[1741896652444,0.1245167,80341.0,80340.0,0.12638512]
[1741896653141,0.1245167,80341.0,80340.0,0.13881586]
[1741896653443,0.1185167,80341.0,80340.0,0.13881586]
[1741896654551,0.00012535,80344.0,80343.0,0.1245136]
[1741896654748,0.00012535,80344.0,80343.0,0.15700314]
[1741896655247,0.00012535,80344.0,80343.0,0.19470198]
[1741896656039,0.12563735,80344.0,80343.0,0.19470198]
[1741896658047,0.00112535,80344.0,80343.0,0.19470198]
[1741896659448,0.12563735,80344.0,80343.0,0.19470198]
[1741896659844,0.00112535,80344.0,80343.0,0.19470198]
[1741896660449,0.00112535,80344.0,80343.0,0.17150269]
[1741896661843,0.00112535,80344.0,80343.0,0.19431566]
[1741896662240,5e-08,80344.0,80343.0,0.31878123]
[1741896662453,5e-08,80344.0,80343.0,0.54878123]
[1741896662657,5e-08,80344.0,80343.0,0.22631254]
[1741896663247,5.247e-05,80344.0,80343.0,0.22631254]
[1741896663850,5.247e-05,80344.0,80343.0,0.28191254]
[1741896664553,5.247e-05,80344.0,80343.0,0.28155462]
[1741896664960,0.12456447,80344.0,80343.0,0.28155462]
[1741896665360,5.247e-05,80344.0,80343.0,0.28155462]
[1741896666158,0.05845247,80344.0,80343.0,0.28155462]
[1741896666744,0.18296447,80344.0,80343.0,0.28155462]
[1741896666949,0.23936447,80344.0,80343.0,0.28155462]
[1741896667345,0.23936447,80344.0,80343.0,0.22595462]
[1741896667857,0.23936447,80344.0,80343.0,0.15129818]
[1741896668153,0.23936447,80344.0,80343.0,0.02678458]
[1741896668754,0.23936447,80344.0,80340.0,0.00186692]
[1741896668955,0.1245167,80341.0,80340.0,0.00186692]
[1741896669750,0.1245167,80341.0,80340.0,0.12638512]
[1741896670351,0.1245167,80341.0,80340.0,0.18458512]
[1741896671253,0.1255167,80341.0,80340.0,0.18458512]
[1741896672360,0.001,80341.0,80340.0,0.19680392]
[1741896672550,0.001,80341.0,80340.0,0.25320392]
[1741896672751,0.001,80341.0,80340.0,0.33185362]
[1741896672950,0.001,80341.0,80340.0,0.34606439]
[1741896673753,5.242e-05,80344.0,80343.0,0.1245136]
[1741896673957,5.242e-05,80344.0,80343.0,0.1562821]
[1741896674362,5.242e-05,80344.0,80343.0,0.17049287]
[1741896675465,0.00105242,80344.0,80343.0,0.17049287]
[1741896675663,0.00105242,80344.0,80343.0,0.13872437]
[1741896675855,0.00105242,80344.0,80343.0,0.17016949]
[1741896676458,0.12556442,80344.0,80343.0,0.17016949]
[1741896676762,0.12556442,80344.0,80343.0,0.04565589]
[1741896677068,0.12556442,80344.0,80343.0,0.0263049]
[1741896677258,0.17926442,80344.0,80343.0,0.0263049]
[1741896677460,0.18026442,80344.0,80343.0,0.0263049]
[1741896678568,0.18026442,80344.0,80343.0,0.01421077]
[1741896678771,0.19224433,80344.0,80343.0,0.01421077]
[1741896679068,0.1245167,80341.0,80340.0,0.00186692]
[1741896679259,0.1245167,80341.0,80340.0,0.01399249]
[1741896679460,0.1245167,80341.0,80340.0,0.01401363]
[1741896679763,0.1245167,80341.0,80340.0,0.01599819]
[1741896679965,0.2403167,80341.0,80340.0,0.01599819]
[1741896680355,0.2403167,80341.0,80340.0,0.01413127]
[1741896680560,0.3739567,80341.0,80340.0,0.01413127]
[1741896681066,0.3749567,80341.0,80340.0,0.01413127]
[1741896681566,0.3749567,80341.0,80340.0,0.02620032]
[1741896681766,0.3749567,80341.0,80335.0,0.00018664]
[1741896681767,0.25044,80341.0,80335.0,0.00018664]
[1741896682068,0.1245244,80336.0,80335.0,0.00018664]
[1741896682262,0.12457682,80336.0,80335.0,0.00018664]
[1741896682872,0.23447682,80336.0,80335.0,0.00018664]
[1741896684068,0.23447682,80336.0,80335.0,0.00418664]
[1741896684564,0.23447682,80336.0,80335.0,0.00018664]
[1741896684764,0.23547682,80336.0,80335.0,0.00418664]
[1741896687370,0.2354244,80336.0,80335.0,0.00418664]
[1741896687762,0.23547682,80336.0,80335.0,0.00418664]
[1741896689673,0.36907682,80336.0,80335.0,0.00418664]
[1741896690965,0.36907682,80336.0,80335.0,0.05898664]
[1741896691373,0.36907682,80336.0,80335.0,0.00418664]
[1741896693367,0.36907682,80336.0,80335.0,0.06288664]
[1741896693564,0.23547682,80336.0,80335.0,0.18741264]
[1741896693771,0.36907682,80336.0,80335.0,0.18741264]
[1741896694669,0.23547682,80336.0,80335.0,0.18741264]
[1741896695075,0.05515242,80336.0,80335.0,0.18741264]
[1741896695272,0.00105242,80336.0,80335.0,0.21317138]
[1741896695472,0.1336,80347.0,80335.0,0.14364538]
[1741896695668,0.3026691,80347.0,80346.0,0.1245059]
[1741896695968,0.1867576,80350.0,80349.0,0.1245043]
[1741896696171,0.1867576,80350.0,80349.0,0.13635338]
[1741896696979,0.1867576,80350.0,80349.0,0.15023569]
[1741896697682,0.1867576,80350.0,80349.0,0.15022861]
[1741896698181,0.1867576,80350.0,80349.0,0.16208528]
[1741896698382,0.1877576,80350.0,80349.0,0.16708528]
[1741896699477,0.1877576,80350.0,80349.0,0.16705736]
[1741896699979,0.1877576,80350.0,80349.0,0.15317505]
[1741896702070,0.1867576,80350.0,80349.0,0.14817505]
[1741896702271,0.1867576,80350.0,80349.0,0.15417505]
[1741896702478,0.1867576,80350.0,80349.0,0.14236097]
[1741896704488,0.12468684,80352.0,80351.0,0.1245012]
[1741896705187,0.12468684,80352.0,80351.0,0.2377012]
[1741896705489,0.17908684,80352.0,80351.0,0.2377012]
[1741896705689,0.17908684,80352.0,80351.0,0.2437012]
[1741896707479,0.12468684,80352.0,80351.0,0.2437012]
[1741896707679,0.00018664,80352.0,80351.0,0.25530596]
[1741896707875,0.2489788,80362.0,80361.0,0.1244811]
[1741896708075,0.1244874,80362.0,80361.0,0.1244811]
[1741896708990,0.1244874,80362.0,80361.0,0.2392811]
[1741896709397,0.1244874,80362.0,80361.0,0.2452811]
[1741896711389,0.1152,80365.0,80361.0,0.2452811]
[1741896711690,0.124482,80364.0,80363.0,0.1244811]
[1741896712194,0.238182,80364.0,80363.0,0.1244811]
[1741896712897,0.238182,80364.0,80363.0,0.1304811]
[1741896713587,0.1137,80364.0,80363.0,0.1304811]
[1741896713784,0.00018664,80370.0,80369.0,0.1244733]
[1741896714290,0.00018664,80370.0,80369.0,0.13606264]
[1741896714690,0.0622188,80393.0,80390.0,0.1244408]
[1741896714897,0.12630608,80391.0,80390.0,0.1244408]
[1741896715393,0.00186678,80391.0,80390.0,0.1244408]
[1741896715698,0.2369377,80392.0,80391.0,0.1244393]
[1741896715894,0.0622173,80394.0,80393.0,0.1244362]
[1741896718098,0.24333114,80399.0,80398.0,0.1244284]
[1741896718898,0.1244315,80396.0,80395.0,0.2488622]
[1741896720404,0.1194315,80396.0,80395.0,0.2488622]
[1741896721498,0.1194315,80396.0,80395.0,0.1244307]
[1741896721896,0.06584392,80399.0,80395.0,0.005]
[1741896722198,0.1244303,80397.0,80396.0,0.062215]
[1741896722596,0.11890014,80399.0,80396.0,0.120315]
[1741896722798,0.11890014,80399.0,80398.0,0.1244284]
[1741896724200,0.11890014,80399.0,80398.0,0.1825284]
[1741896725099,0.11890014,80399.0,80398.0,0.19438327]
[1741896725300,0.11890014,80399.0,80398.0,0.06995487]
[1741896725507,0.11890014,80399.0,80398.0,0.07495487]
[1741896725907,0.11890014,80399.0,80398.0,0.19938327]
[1741896726505,0.11890014,80399.0,80398.0,0.07495487]
[1741896726698,0.11890014,80399.0,80398.0,0.06995487]
[1741896726910,0.11890014,80399.0,80398.0,0.07495487]
[1741896728309,0.11890014,80399.0,80398.0,0.19938327]
[1741896728600,0.00018664,80399.0,80398.0,0.19938327]
[1741896728804,0.11896833,80440.0,80405.0,0.1244176]
[1741896728805,0.0568,80406.0,80405.0,0.1244176]
[1741896729002,0.181216,80406.0,80405.0,0.1244176]
[1741896729595,0.062203,80413.0,80410.0,0.1244099]
[1741896729596,0.124406,80413.0,80410.0,0.1244099]
[1741896729806,0.0622029,80413.0,80410.0,0.1244099]
[1741896730005,0.12627464,80411.0,80410.0,0.1244099]
[1741896730204,0.00186634,80411.0,80410.0,0.194655]
[1741896730507,0.00186634,80411.0,80410.0,0.252155]
[1741896730805,0.12627464,80411.0,80410.0,0.252155]
[1741896732898,0.12627464,80411.0,80410.0,0.257155]
[1741896733708,0.18417464,80411.0,80410.0,0.257155]
[1741896734206,0.05976634,80411.0,80410.0,0.257155]
[1741896734414,0.0568,80416.0,80410.0,0.257155]
[1741896734415,0.00018664,80419.0,80418.0,0.1243975]
[1741896734703,0.1865913,80424.0,80423.0,0.1243825]
[1741896735503,0.062196,80424.0,80423.0,0.1243825]
[1741896735715,0.118496,80424.0,80423.0,0.1243825]
[1741896736100,0.0563,80424.0,80423.0,0.1293825]
[1741896736700,0.0563,80424.0,80423.0,0.1840825]
[1741896736897,0.1806882,80424.0,80423.0,0.1840825]
[1741896738614,0.1806882,80424.0,80423.0,0.19614517]
[1741896739510,0.1806882,80424.0,80423.0,0.0597]
[1741896739813,0.1806882,80424.0,80423.0,0.005]
[1741896740316,0.1806882,80424.0,80423.0,0.1293897]
[1741896740514,0.1806882,80424.0,80423.0,0.005]
[1741896741104,0.1806882,80424.0,80423.0,0.1293897]
[1741896741615,0.1806882,80424.0,80423.0,0.005]
[1741896742014,0.1806882,80424.0,80423.0,0.1293897]
[1741896742216,0.1806882,80424.0,80423.0,0.1820897]
[1741896742511,0.19281364,80424.0,80423.0,0.1820897]
[1741896743812,0.19281364,80424.0,80423.0,0.0577]
[1741896744119,0.19281364,80424.0,80423.0,0.005]
[1741896744705,0.19281364,80424.0,80423.0,0.1293897]
[1741896745317,0.19281364,80424.0,80423.0,0.005]
[1741896750612,0.2377882,80424.0,80423.0,0.005]
[1741896752215,0.2377882,80424.0,80423.0,0.06]
[1741896752415,0.2377882,80424.0,80423.0,0.2371897]
[1741896753522,0.2377882,80424.0,80423.0,0.005]
[1741896756019,0.1193913,80422.0,80421.0,0.053]